[Event "Fagernes Chess GM-Swiss 2024"]
[Site "Fagernes"]
[Date "2024.03.27"]
[Round "4.23"]
[White "Petkov, Momchil"]
[Black "Al-Tarboush, Ward"]
[Result "1/2-1/2"]
[ECO "B43"]
[WhiteElo "2500"]
[BlackElo "2277"]
[Annotator "TA"]
[PlyCount "150"]
[EventDate "2024.03.25"]
[EventType "swiss"]
[EventCountry "NOR"]
[SourceTitle "playchess.com"]
[Source "ChessBase"]
[SourceQuality "1"]
[TimeControl "40/6000+30:2400+30"]

{[%evp 16,150,33,36,40,10,20,20,16,22,14,21,31,26,45,35,30,35,48,35,73,67,77,63,116,106,199,193,186,190,226,183,164,179,172,170,184,183,1494,191,179,0,0,0,0,0,0,0,0,0,0,0,0,0,0,0,0,0,0,0,0,0,0,0,0,0,0,0,0,0,0,0,0,0,0,0,0,0,0,0,0,0,0,0,0,0,0,0,0,0,0,0,0,0,0,0,0,0,0,0,0,0,0,0,0,0,0,0,0,0,0,0,0,0,0,0,0,0,0,0,0,0,0,0,0,0,0,0,0,0,0,0,0,0,0,0,0]} 1. e4 {[%emt 0:00:07]} c5 {[%emt 0:00:02]} 2. Nf3 {[%emt 0:00:09]} e6 {[%emt 0:00:04]} 3. Nc3 {[%emt 0:00:24]} a6 {[%emt 0:00:35]} 4. d4 {[%emt 0:00:06]} cxd4 {[%emt 0:00:04]} 5. Nxd4 {[%emt 0:00:06]} Qc7 {[%emt 0:00:07]} 6. Bd3 {[%emt 0:00:24]} Nc6 {[%emt 0:01:14]} 7. Nxc6 {[%emt 0:01:10]} dxc6 {[%emt 0:00:05]} 8. O-O {[%emt 0:04:13]} e5 {[%emt 0:03:01]} 9. Be3 {[%emt 0:16:45]} Nf6 {[%emt 0:00:14]} 10. h3 {[%emt 0:02:19]} Bd6 {[%emt 0:03:10]} 11. a4 {[%emt 0:07:26]} a5 {[%emt 0:00:47]} 12. Bc4 {[%emt 0:01:26]} O-O {[%emt 0:06:34]} 13. Qf3 {[%emt 0:03:37]} Qe7 {[%emt 0:01:35]} 14. Rad1 {[%emt 0:10:09][%cal Ba1d1,Bd1d3,Bd3d7][%mdl 32]} Bc5 {[%emt 0:01:19]} 15. Rd3 {[%emt 0:06:09]} Bxe3 {[%emt 0:15:15]} 16. Qxe3 {[%emt 0:00:58]} Nh5 {[%emt 0:00:25]} 17. Ne2 {[%emt 0:05:02] Verhindert Nf4.} Be6 {[%emt 0:01:45]} 18. Bxe6 {[%emt 0:00:23]} fxe6 {[%emt 0:01:29]} 19. Rfd1 {[%emt 0:05:44]} Nf4 {[%emt 0:01:55]} (19... Rad8 $14) 20. Rd7 $16 {[%emt 0:03:19]} Qg5 {[%emt 0:01:24]} (20... Qb4 $16 {kämpft weiter.}) 21. Nxf4 $18 {[%emt 0:00:42]} (21. Rxb7 $2 Qxg2#) 21... exf4 {[%emt 0:00:23]} 22. Qb3 $36 {[%emt 0:05:19][%mdl 2048] Läuft bei Weiss.} Qe5 {[%emt 0:36:13]} 23. Re7 {[%emt 0:13:32]} Rae8 {[%emt 0:02:11]} 24. Rxe8 {[%emt 0:03:07]} Rxe8 {[%emt 0:00:01]} 25. Qxb7 {[%emt 0:00:07]} Qxe4 {[%emt 0:01:53][%mdl 4096] Endspiel. [#] KQR-KQR} 26. Rd7 $1 {[%emt 0:00:06]} Qe1+ {[%emt 0:01:45]} 27. Kh2 {[%emt 0:00:04]} Qe5 {[%emt 0:00:36] [#]} 28. Qxc6 {[%emt 0:00:38]} (28. f3 $1 $18) 28... f3+ $11 {[%emt 0:02:06] Die Stellung ist ausgeglichen.} 29. g3 {[%emt 0:00:05] Und jetzt Rd6 wäre schön.} Qe1 $1 {[%emt 0:01:11]} 30. Qxf3 {[%emt 0:06:49]} (30. Qc5 $5 Qf1 $8 31. Rxg7+ Kxg7 32. Qg5+ Kf7 33. Qf4+ Ke7 34. Qc7+ Kf8 35. Qf4+ Ke7 36. Qc7+ Kf8 37. Qf4+ Ke7 $11) 30... Rf8 {[%emt 0:02:12] Verhindert Qf7+.} 31. Rd1 $1 {[%emt 0:00:04]} Qxf2+ {[%emt 0:00:19]} 32. Qg2 {[%emt 0:00:35]} Qb6 $1 {[%emt 0:00:27]} 33. Rf1 {[%emt 0:05:15] Verhindert Rf2.} Rxf1 {[%emt 0:00:14]} 34. Qxf1 {[%emt 0:00:03]} Qxb2 {[%emt 0:00:10] KQ-KQ} 35. Qc4 {[%emt 0:00:45]} Qb6 {[%emt 0:00:47]} 36. Kg2 {[%emt 0:00:58]} h6 {[%emt 0:00:09]} 37. h4 {[%emt 0:00:34]} Kf7 {[%emt 0:03:35]} 38. h5 {[%emt 0:03:02]} Qe3 {[%emt 0:06:42]} 39. Qc7+ {[%emt 0:03:55]} Kf6 {[%emt 0:00:04]} 40. Qd8+ {[%emt 0:00:07]} Kf7 {[%emt 0:00:30]} 41. Qc7+ {[%emt 0:40:13]} Kf6 {[%emt 0:40:04]} 42. Qd8+ {[%emt 0:00:05]} Kf7 {[%emt 0:00:03]} 43. Qxa5 {[%emt 0:01:49]} Qe2+ {[%emt 0:01:14]} 44. Kh3 {[%emt 0:03:45]} Qf1+ {[%emt 0:00:41]} 45. Kg4 {[%emt 0:00:05]} Qe2+ {[%emt 0:00:23]} 46. Kf4 {[%emt 0:00:15]} Qf2+ {[%emt 0:00:13]} 47. Ke4 {[%emt 0:00:19] Und Qc7+ würde nun gewinnen.} Qxc2+ {[%emt 0:00:09]} 48. Kd4 {[%emt 0:01:19]} Qd1+ {[%emt 0:02:17]} 49. Kc4 {[%emt 0:00:00]} Qg4+ {[%emt 0:00:00]} 50. Kb3 {[%emt 0:00:00]} Qxg3+ {[%emt 0:00:00]} 51. Qc3 {[%emt 0:00:00]} Qb8+ {[%emt 0:00:00]} 52. Qb4 {[%emt 0:00:00]} Qg3+ {[%emt 0:00:00]} 53. Kc4 {[%emt 0:00:00]} Qf4+ {[%emt 0:00:00]} 54. Kb3 {[%emt 0:00:00]} Qf3+ {[%emt 0:00:00]} 55. Qc3 {[%emt 0:00:00]} Qxh5 {[%emt 0:00:00] ...Qd5+ wäre nun fies.} 56. Qc7+ {[%emt 0:00:00]} Kg8 {[%emt 0:00:00]} 57. a5 {[%emt 0:00:00]} Qb5+ {[%emt 0:00:00]} 58. Kc3 {[%emt 0:00:00]} h5 {[%emt 0:00:00]} 59. Qc8+ {[%emt 0:00:00]} Kh7 {[%emt 0:00:00]} 60. a6 {[%emt 0:00:00]} h4 {[%emt 0:00:00]} 61. Qxe6 {[%emt 0:00:00] Schwarz muss nun Qe4+ beachten.} Qa5+ {[%emt 0:00:00]} 62. Kd4 {[%emt 0:00:00]} Qb4+ {[%emt 0:00:00]} 63. Kd5 {[%emt 0:00:00] Beabsichtigt Qe4+ und Matt.} Qb3+ {[%emt 0:00:00]} 64. Kd6 {[%emt 0:00:00]} Qf3 {[%emt 0:00:00]} 65. Qa2 {[%emt 0:00:00]} Qg3+ {[%emt 0:00:00]} 66. Kd7 {[%emt 0:00:00]} Qd3+ {[%emt 0:00:00]} 67. Kc7 {[%emt 0:00:00]} Qc3+ {[%emt 0:00:00]} 68. Kd7 {[%emt 0:00:00]} Qd4+ {[%emt 0:00:00]} 69. Kc8 {[%emt 0:00:00]} Qa7 {[%emt 0:00:00]} 70. Qb1+ {[%emt 0:00:00]} Kh6 {[%emt 0:00:00]} 71. Qb7 {[%emt 0:00:00]} Qc5+ {[%emt 0:00:00]} 72. Kd7 {[%emt 0:00:19]} Qf5+ {[%emt 0:00:00]} 73. Ke8 {[%emt 0:01:15]} Qe6+ {[%emt 0:00:00]} 74. Kd8 {[%emt 0:00:48]} Qd6+ {[%emt 0:00:00]} 75. Ke8 {[%emt 0:00:06]} Qe6+ {[%emt 0:00:00] Schwarz rettet sich ins Remis.   Gewichteter Fehlerwert: Weiß=0.06 (makellos) /Schwarz=0.08 (makellos) .  Fehler:       	---       	Schwarz=2     Ungenau:       	Weiß=2     	Schwarz=1     OK:         	Weiß=36    	Schwarz=26    Bester:       	Weiß=2     	Schwarz=3     Stark:        	Weiß=2     	Schwarz=2} 1/2-1/2

[Event "Fagernes Chess GM-Swiss 2024"]
[Site "Fagernes"]
[Date "2024.03.27"]
[Round "4.24"]
[White "Sorensen, Hampus"]
[Black "Moreby, James"]
[Result "1-0"]
[ECO "E14"]
[WhiteElo "2428"]
[BlackElo "2260"]
[Annotator "TA"]
[PlyCount "81"]
[EventDate "2024.03.25"]
[EventType "swiss"]
[EventCountry "NOR"]
[SourceTitle "playchess.com"]
[Source "ChessBase"]
[SourceQuality "1"]
[TimeControl "40/6000+30:2400+30"]

{[%evp 19,81,37,43,41,47,57,64,30,43,39,39,40,60,34,26,25,25,25,39,37,70,58,63,62,82,47,38,20,31,31,28,33,36,25,67,67,74,71,78,45,64,29,29,27,349,356,792,828,818,823,795,796,990,985,976,981,2676,2173,5356,7755,29987,29988,29989,29990]} 1. d4 {[%emt 0:00:07]} Nf6 {[%emt 0:04:49]} 2. c4 {[%emt 0:00:09]} e6 {[%emt 0:00:07]} 3. Nf3 {[%emt 0:00:10]} Bb4+ {[%emt 0:00:05]} 4. Nbd2 {[%emt 0:00:19]} b6 {[%emt 0:00:13]} 5. a3 {[%emt 0:00:30]} Bxd2+ {[%emt 0:00:12]} 6. Qxd2 {[%emt 0:00:09]} Bb7 {[%emt 0:00:18]} 7. e3 {[%emt 0:00:56]} d6 {[%emt 0:04:03]} 8. Be2 {[%emt 0:07:51]} O-O {[%emt 0:01:06]} 9. O-O {[%emt 0:05:50]} Ne4 {[%emt 0:14:49]} 10. Qc2 {[%emt 0:02:16]} f5 {[%emt 0:05:28]} 11. Ne1 {[%emt 0:02:18]} Qh4 {[%emt 0:11:47]} 12. f3 {[%emt 0:10:33]} Ng5 {[%emt 0:03:03]} 13. Bd1 {[%emt 0:10:49] White is slightly better.} Nd7 {[%emt 0:05:09]} 14. Qf2 {[%emt 0:01:47]} Qxf2+ {[%emt 0:00:08]} 15. Rxf2 {[%emt 0:00:09][%cal Oe3e4]} e5 {[%emt 0:11:51]} 16. dxe5 {[%emt 0:06:54]} dxe5 {[%emt 0:01:16]} 17. b4 {[%emt 0:10:26][%cal Oc4c5]} Nf7 {[%emt 0:17:15]} 18. Bb2 {[%emt 0:06:42][%cal Oc4c5]} a5 {[%emt 0:04:07]} 19. Ba4 {[%emt 0:16:19]} c6 {[%emt 0:03:09]} 20. Rd1 {[%emt 0:02:47]} Nf6 {[%emt 0:00:26]} 21. Bc2 {[%emt 0:01:04]} Bc8 {[%emt 0:03:24]} 22. bxa5 {[%emt 0:07:54]} Rxa5 {[%emt 0:00:31]} 23. Bc3 {[%emt 0:00:10]} Ra6 {[%emt 0:03:29][%cal Of8e8]} 24. Nd3 {[%emt 0:02:07]} c5 {[%emt 0:01:35]} 25. a4 {[%emt 0:00:10]} Re8 {[%emt 0:04:29]} 26. a5 {[%emt 0:02:37]} bxa5 {[%emt 0:03:12]} 27. Ra1 {[%emt 0:00:37]} (27. Nxc5 Rc6 28. Nd3 Rxc4 29. Bxa5 Be6 $11) 27... Nd7 {[%emt 0:05:33]} 28. Ba4 $36 {[%emt 0:00:54][%mdl 3072] White has strong compensation. Keeping Black busy.} (28. Bxa5 Bb7 $15) 28... Re7 {[%emt 0:00:59]} 29. Bb5 {[%emt 0:07:01]} Ra7 {[%emt 0:00:47]} 30. Rfa2 {[%emt 0:00:08] White is much more active.} e4 {[%emt 0:00:59]} 31. Nf4 {[%emt 0:00:37] [#] Black must now prevent Nd5.} (31. Rxa5 $2 Rxa5 32. Rxa5 exd3 $19) 31... Nb6 {[%emt 0:00:38][%mdl 8192] A mistake that costs the game.} (31... Bb7 $11) 32. Bxa5 $18 {[%emt 0:00:31][%cal Bc3a5,Ba5b6,Bb6c5][%mdl 32] This pair of bishops is nice.} (32. Rxa5 Rxa5 33. Rxa5 (33. Bxa5 Ra7 $11) 33... exf3 $14) 32... g5 $2 {[%emt 0:00:40]} (32... Rxa5 33. Rxa5 exf3) 33. Bxb6 {[%emt 0:01:22]} Rxa2 {[%emt 0:00:01]} 34. Rxa2 {[%emt 0:00:09]} gxf4 {[%emt 0:00:14][%cal Bg5f4,Bf4e3,Be3e2][%mdl 32]} 35. Ra8 {[%emt 0:02:14]} fxe3 {[%emt 0:00:42]} 36. Rxc8+ {[%emt 0:00:15]} Kg7 {[%emt 0:00:01]} 37. Bxc5 {[%emt 0:00:52]} exf3 {[%emt 0:01:09]} 38. Bxe7 {[%emt 0:00:28]} e2 {[%emt 0:00:02]} 39. Bb4 {[%emt 0:00:20] [#] Intending Rc7 and mate.} (39. gxf3 $2 {perishes.} e1=Q+ (39... e1=B $2 {loses.} 40. Bf8+ Kf6 41. f4 $18) 40. Kg2 Qxe7 $19) 39... Nd6 {[%emt 0:00:24]} 40. Rc7+ {[%emt 0:00:06]} (40. Bxd6 $2 e1=Q#) 40... Kg8 {[%emt 0:00:10]} 41. gxf3 {[%emt 0:40:22] Weighted Error Value: White=0.08 (flawless) /Black=0.58.  Loses game:     	---       	Black=1      Mistake:       	---       	Black=1      Inaccurate:     	White=5     	Black=2      OK:         	White=7     	Black=7      Best:        	White=3     	Black=1} (41. Bxd6 $2 e1=Q#) 1-0

[Event "Fagernes Chess GM-Swiss 2024"]
[Site "Fagernes"]
[Date "2024.03.27"]
[Round "4.25"]
[White "Vijayakumar, Rishi"]
[Black "Yaniv, Yuval"]
[Result "0-1"]
[ECO "E60"]
[WhiteElo "2156"]
[BlackElo "2368"]
[Annotator "RC"]
[PlyCount "77"]
[EventDate "2024.03.25"]
[EventType "swiss"]
[EventCountry "NOR"]
[SourceTitle "playchess.com"]
[Source "ChessBase"]
[SourceQuality "1"]
[TimeControl "40/6000+30:2400+30"]

1. d4 {[%emt 0:00:37]} Nf6 {[%emt 0:00:11]} 2. c4 {[%emt 0:00:05]} g6 {[%emt 0:00:13]} 3. h4 {[%emt 0:00:23]} Bg7 {[%emt 0:00:29]} 4. Nc3 {[%emt 0:00:50]} O-O {[%emt 0:00:20]} 5. e4 {[%emt 0:00:27]} d6 {[%emt 0:00:55]} 6. h5 {[%emt 0:02:10]} Nxh5 {[%emt 0:00:25]} 7. g4 {[%emt 0:00:13]} Nf6 {[%emt 0:00:07]} 8. g5 {[%emt 0:00:05]} Nfd7 {[%emt 0:00:08]} 9. f4 {[%emt 0:00:07]} Re8 {[%emt 0:02:06]} 10. Be3 {[%emt 0:04:06]} c5 {[%emt 0:00:45]} 11. d5 {[%emt 0:05:43]} b5 {[%emt 0:06:49]} 12. cxb5 {[%emt 0:02:25]} a6 {[%emt 0:00:14]} 13. a4 {[%emt 0:14:23]} axb5 {[%emt 0:03:37]} 14. axb5 {[%emt 0:06:34]} Rxa1 {[%emt 0:00:48]} 15. Qxa1 {[%emt 0:00:28]} Nb6 {[%emt 0:01:34]} 16. Qa7 {[%emt 0:03:14]} N8d7 {[%emt 0:03:19]} 17. Nf3 {[%emt 0:06:13]} e6 {[%emt 0:01:22]} 18. dxe6 {[%emt 0:02:13]} Rxe6 {[%emt 0:00:13]} 19. Kf2 {[%emt 0:02:07]} Bxc3 {[%emt 0:03:00]} 20. bxc3 {[%emt 0:00:03]} Rxe4 {[%emt 0:00:08]} 21. c4 {[%emt 0:13:43]} Nxc4 {[%emt 0:14:32]} 22. Bxc4 {[%emt 0:10:21]} Rxc4 {[%emt 0:00:09]} 23. Rd1 {[%emt 0:00:12]} Rc2+ {[%emt 0:10:50]} 24. Kg3 {[%emt 0:01:00]} Rc3 {[%emt 0:15:17]} 25. Bd2 {[%emt 0:04:44]} Rb3 {[%emt 0:02:04]} 26. Qa4 {[%emt 0:10:28]} c4 {[%emt 0:03:23]} 27. Qxc4 {[%emt 0:00:19]} Nc5 {[%emt 0:00:15]} 28. Be3 {[%emt 0:00:19]} Qd7 {[%emt 0:04:26]} 29. Kf2 {[%emt 0:09:15]} Qb7 {[%emt 0:13:25]} 30. Rxd6 {[%emt 0:10:06]} Ne4+ {[%emt 0:03:38]} 31. Ke2 {[%emt 0:02:36]} Rxe3+ {[%emt 0:04:09]} 32. Kxe3 {[%emt 0:00:02]} Nxd6 {[%emt 0:00:07]} 33. Qd3 {[%emt 0:00:08]} Qb6+ {[%emt 0:00:38]} 34. Kd2 {[%emt 0:00:11]} Nxb5 {[%emt 0:01:17]} 35. Qe4 {[%emt 0:00:30]} Qd6+ {[%emt 0:00:38]} 36. Ke1 {[%emt 0:01:13]} Be6 {[%emt 0:01:11]} 37. Qa8+ {[%emt 0:00:23]} Qf8 {[%emt 0:00:09]} 38. Qa5 {[%emt 0:00:46]} Nd6 {[%emt 0:01:13]} 39. Nd4 {[%emt 0:00:00]} 0-1

[Event "Fagernes Chess GM-Swiss 2024"]
[Site "Fagernes"]
[Date "2024.03.27"]
[Round "4.26"]
[White "Kenneskog, Theodor"]
[Black "Kreken, Eivind Grunt"]
[Result "1/2-1/2"]
[ECO "C93"]
[WhiteElo "2358"]
[BlackElo "2215"]
[Annotator "RC"]
[PlyCount "164"]
[EventDate "2024.03.25"]
[EventType "swiss"]
[EventCountry "NOR"]
[SourceTitle "playchess.com"]
[Source "ChessBase"]
[SourceQuality "1"]
[TimeControl "40/6000+30:2400+30"]

1. e4 {[%emt 0:05:29]} e5 {[%emt 0:02:15]} 2. Nf3 {[%emt 0:00:16]} Nc6 {[%emt 0:00:14]} 3. Bb5 {[%emt 0:00:13]} a6 {[%emt 0:00:33]} 4. Ba4 {[%emt 0:00:15]} Nf6 {[%emt 0:00:35]} 5. O-O {[%emt 0:00:18]} Be7 {[%emt 0:00:53]} 6. Re1 {[%emt 0:00:23]} b5 {[%emt 0:01:18]} 7. Bb3 {[%emt 0:00:04]} d6 {[%emt 0:00:36]} 8. c3 {[%emt 0:00:19]} O-O {[%emt 0:01:16]} 9. h3 {[%emt 0:00:10]} h6 {[%emt 0:01:14]} 10. d4 {[%emt 0:00:47]} Re8 {[%emt 0:00:38]} 11. Nbd2 {[%emt 0:00:29]} Bd7 {[%emt 0:01:28]} 12. Nf1 {[%emt 0:01:53]} a5 {[%emt 0:00:45]} 13. a4 {[%emt 0:16:07]} bxa4 {[%emt 0:01:12]} 14. Bxa4 {[%emt 0:03:03]} exd4 {[%emt 0:01:07]} 15. cxd4 {[%emt 0:01:16]} Nb4 {[%emt 0:02:50]} 16. Ng3 {[%emt 0:00:37]} Bxa4 {[%emt 0:05:37]} 17. Rxa4 {[%emt 0:01:16]} Bf8 {[%emt 0:11:11]} 18. Re3 {[%emt 0:11:17]} c5 {[%emt 0:06:32]} 19. d5 {[%emt 0:06:04]} Nd7 {[%emt 0:13:16]} 20. Ra1 {[%emt 0:12:35]} g6 {[%emt 0:06:50]} 21. Bd2 {[%emt 0:01:20]} Bg7 {[%emt 0:02:47]} 22. Bc3 {[%emt 0:00:37]} Nb6 {[%emt 0:01:47]} 23. Nd2 {[%emt 0:05:15]} h5 {[%emt 0:03:00]} 24. Ngf1 {[%emt 0:09:23]} h4 {[%emt 0:09:07]} 25. Nh2 {[%emt 0:05:30]} Nd7 {[%emt 0:12:01]} 26. Nc4 {[%emt 0:07:00]} Nf6 {[%emt 0:01:27]} 27. Qe2 {[%emt 0:03:42]} Ra7 {[%emt 0:01:28]} 28. Re1 {[%emt 0:12:27]} Na2 {[%emt 0:02:59]} 29. Bd2 {[%emt 0:01:14]} a4 {[%emt 0:02:31]} 30. Qd1 {[%emt 0:02:04]} Nb4 {[%emt 0:01:12]} 31. Bc3 {[%emt 0:01:05]} Na2 {[%emt 0:02:36]} 32. Bd2 {[%emt 0:00:02]} Nb4 {[%emt 0:00:07]} 33. f3 {[%emt 0:03:03]} Nh5 {[%emt 0:04:38]} 34. Ra3 {[%emt 0:00:16]} Kh7 {[%emt 0:10:23]} 35. Be3 {[%emt 0:04:13]} Ra6 {[%emt 0:00:57]} 36. Rxa4 {[%emt 0:01:01]} Rxa4 {[%emt 0:00:25]} 37. Qxa4 {[%emt 0:00:01]} Nd3 {[%emt 0:00:30]} 38. Re2 {[%emt 0:00:29]} Qa8 {[%emt 0:00:36]} 39. Qd1 {[%emt 0:00:36]} Ndf4 {[%emt 0:00:36]} 40. Rc2 {[%emt 0:00:55]} Qa6 {[%emt 0:00:28]} 41. Qd2 {[%emt 0:03:07]} g5 {[%emt 0:06:04]} 42. Ng4 {[%emt 0:03:32]} Ng3 {[%emt 0:14:57]} 43. Qd1 {[%emt 0:11:56]} f6 {[%emt 0:07:20]} 44. Nf2 {[%emt 0:07:06]} f5 {[%emt 0:09:15]} 45. Kh2 {[%emt 0:08:26]} Kg8 {[%emt 0:01:48]} 46. exf5 {[%emt 0:02:11]} Nxf5 {[%emt 0:00:13]} 47. Ne4 {[%emt 0:02:08]} Nxe3 {[%emt 0:01:40]} 48. Nxe3 {[%emt 0:00:02]} Qa4 {[%emt 0:01:05]} 49. Ng4 {[%emt 0:02:09]} Rb8 {[%emt 0:01:45]} 50. Qd2 {[%emt 0:02:20]} Qd4 {[%emt 0:00:25]} 51. Nxd6 {[%emt 0:00:44]} Qxd2 {[%emt 0:01:06]} 52. Rxd2 {[%emt 0:00:01]} Bxb2 {[%emt 0:00:39]} 53. Ne4 {[%emt 0:02:20]} c4 {[%emt 0:00:28]} 54. d6 {[%emt 0:00:21]} c3 {[%emt 0:00:10]} 55. Rc2 {[%emt 0:00:10]} Nd5 {[%emt 0:00:44]} 56. Nef6+ {[%emt 0:02:08]} Nxf6 {[%emt 0:00:01]} 57. Nxf6+ {[%emt 0:00:04]} Kg7 {[%emt 0:00:45]} 58. Ne4 {[%emt 0:00:33]} Rd8 {[%emt 0:00:38]} 59. Kg1 {[%emt 0:00:47]} Kg6 {[%emt 0:00:29]} 60. Kf2 {[%emt 0:00:28]} Kh5 {[%emt 0:00:45]} 61. Ke3 {[%emt 0:00:24]} Ba3 {[%emt 0:00:29]} 62. Rxc3 {[%emt 0:01:43]} Bxd6 {[%emt 0:00:01]} 63. Rc6 {[%emt 0:00:46]} Bf4+ {[%emt 0:00:08]} 64. Ke2 {[%emt 0:00:01]} Ra8 {[%emt 0:00:47]} 65. Nf6+ {[%emt 0:00:46]} Kg6 66. Ng4+ {[%emt 0:00:22]} Kg7 {[%emt 0:00:15]} 67. Kd3 {[%emt 0:00:40]} Ra2 {[%emt 0:01:06]} 68. Rc2 {[%emt 0:00:21]} Rxc2 {[%emt 0:00:22]} 69. Kxc2 {[%emt 0:00:05]} Kg6 {[%emt 0:00:07]} 70. Kd3 {[%emt 0:00:18]} Kf5 {[%emt 0:00:11]} 71. Ne3+ {[%emt 0:01:12]} Bxe3 {[%emt 0:01:01]} 72. Kxe3 {[%emt 0:00:05]} Ke5 {[%emt 0:00:03]} 73. Ke2 {[%emt 0:00:30]} Kf5 {[%emt 0:01:59]} 74. Kf2 {[%emt 0:01:03]} Kf4 {[%emt 0:00:20]} 75. g4 {[%emt 0:00:27]} hxg3+ {[%emt 0:00:09]} 76. Kg2 {[%emt 0:00:03]} Ke5 {[%emt 0:00:14]} 77. Kxg3 {[%emt 0:00:17]} Kf5 {[%emt 0:00:04]} 78. Kg2 {[%emt 0:01:08]} Ke5 {[%emt 0:00:07]} 79. Kg3 {[%emt 0:00:22]} Kf5 {[%emt 0:00:05]} 80. h4 {[%emt 0:00:05]} gxh4+ {[%emt 0:00:05]} 81. Kxh4 {[%emt 0:00:10]} Kf4 {[%emt 0:00:03]} 82. Kh3 {[%emt 0:00:05]} Kxf3 {[%emt 0:00:04]} 1/2-1/2

[Event "Fagernes Chess GM-Swiss 2024"]
[Site "Fagernes"]
[Date "2024.03.27"]
[Round "4.27"]
[White "Nielsen, Viktor Haarmark"]
[Black "Oksendal, Martin"]
[Result "1-0"]
[ECO "E04"]
[WhiteElo "2351"]
[BlackElo "2086"]
[Annotator "RC"]
[PlyCount "119"]
[EventDate "2024.03.25"]
[EventType "swiss"]
[EventCountry "NOR"]
[SourceTitle "playchess.com"]
[Source "ChessBase"]
[SourceQuality "1"]
[TimeControl "40/6000+30:2400+30"]

1. d4 {[%emt 0:00:02]} Nf6 {[%emt 0:02:27]} 2. c4 {[%emt 0:00:06]} e6 {[%emt 0:00:15]} 3. Nf3 {[%emt 0:00:06]} d5 {[%emt 0:00:03]} 4. g3 {[%emt 0:00:05]} dxc4 {[%emt 0:00:15]} 5. Bg2 {[%emt 0:00:05]} Bb4+ {[%emt 0:00:08]} 6. Bd2 {[%emt 0:00:05]} a5 {[%emt 0:00:05]} 7. Qc2 {[%emt 0:00:21]} Bxd2+ {[%emt 0:00:04]} 8. Qxd2 {[%emt 0:00:05]} c6 {[%emt 0:00:52]} 9. a4 {[%emt 0:00:05]} b5 {[%emt 0:00:08]} 10. axb5 {[%emt 0:00:07]} cxb5 {[%emt 0:00:03]} 11. Qg5 {[%emt 0:00:08]} O-O {[%emt 0:00:05]} 12. Qxb5 {[%emt 0:00:03]} Ba6 {[%emt 0:00:04]} 13. Qxa5 {[%emt 0:00:10]} Bb7 {[%emt 0:00:14]} 14. Qxd8 {[%emt 0:00:06]} Rxa1 {[%emt 0:00:10]} 15. Qxf8+ {[%emt 0:00:07]} Kxf8 {[%emt 0:00:06]} 16. O-O {[%emt 0:00:07]} Ra2 {[%emt 0:00:02]} 17. Ne5 {[%emt 0:00:12]} Bxg2 {[%emt 0:05:53]} 18. Kxg2 {[%emt 0:00:20]} Rxb2 {[%emt 0:01:40]} 19. Re1 {[%emt 0:00:05]} Rb4 {[%emt 0:49:16]} 20. Rc1 {[%emt 0:05:45]} Rb2 {[%emt 0:18:54]} 21. Nxc4 {[%emt 0:04:15]} Rb4 {[%emt 0:02:00]} 22. Nbd2 {[%emt 0:04:56]} Nbd7 {[%emt 0:02:25]} 23. Nf3 {[%emt 0:02:57]} Ra4 {[%emt 0:02:59]} 24. Rc2 {[%emt 0:03:34]} Nd5 {[%emt 0:02:01]} 25. Ncd2 {[%emt 0:03:10]} Ra7 {[%emt 0:00:48]} 26. Ne4 {[%emt 0:03:19]} Ke7 {[%emt 0:01:28]} 27. Nc3 {[%emt 0:02:29]} Nxc3 {[%emt 0:03:00]} 28. Rxc3 {[%emt 0:00:06]} h6 {[%emt 0:01:14]} 29. h4 {[%emt 0:02:57]} Kd6 {[%emt 0:04:54]} 30. e4 {[%emt 0:04:29]} f6 {[%emt 0:04:24]} 31. h5 {[%emt 0:03:59]} Ra2 {[%emt 0:03:57]} 32. Rc8 {[%emt 0:05:54]} Ke7 {[%emt 0:00:42]} 33. Nh4 {[%emt 0:05:31]} Ra4 {[%emt 0:01:35]} 34. Ng6+ {[%emt 0:08:48]} Kd6 {[%emt 0:02:41]} 35. Rg8 {[%emt 0:03:20]} Rxd4 {[%emt 0:00:11]} 36. Rxg7 {[%emt 0:00:28]} Rxe4 {[%emt 0:00:25]} 37. Rh7 {[%emt 0:00:19]} Re2 {[%emt 0:02:09]} 38. Rxh6 {[%emt 0:01:19]} Ne5 {[%emt 0:00:42]} 39. Nxe5 {[%emt 0:00:38]} Kxe5 {[%emt 0:00:47]} 40. Rg6 {[%emt 0:02:00]} Ra2 {[%emt 0:00:35]} 41. h6 {[%emt 0:40:46]} Ra8 {[%emt 0:04:15]} 42. h7 {[%emt 0:00:00]} Rh8 {[%emt 0:00:27]} 43. f4+ {[%emt 0:00:00]} Kd6 {[%emt 0:13:14]} 44. Rg7 {[%emt 0:00:00]} e5 {[%emt 0:00:58]} 45. g4 {[%emt 0:00:00]} exf4 {[%emt 0:01:54]} 46. Kf3 {[%emt 0:00:00]} Ke5 {[%emt 0:01:48]} 47. Re7+ {[%emt 0:00:00]} Kd6 {[%emt 0:00:13]} 48. Ra7 {[%emt 0:00:00]} Ke5 {[%emt 0:00:21]} 49. Rg7 {[%emt 0:00:00]} Ra8 {[%emt 0:02:21]} 50. Re7+ {[%emt 0:00:00]} Kd6 {[%emt 0:01:16]} 51. Rb7 {[%emt 0:00:00]} Ke5 {[%emt 0:00:47]} 52. Rb5+ {[%emt 0:00:00]} Ke6 {[%emt 0:00:30]} 53. Rh5 {[%emt 0:00:00]} Rh8 {[%emt 0:00:28]} 54. Kxf4 {[%emt 0:00:00]} Kf7 {[%emt 0:00:14]} 55. Kf5 {[%emt 0:00:00]} Kg7 {[%emt 0:00:11]} 56. Rh1 {[%emt 0:00:00]} Kf7 {[%emt 0:02:44]} 57. Ra1 {[%emt 0:00:00]} Kg7 {[%emt 0:00:07]} 58. Ra7+ {[%emt 0:00:00]} Kh6 {[%emt 0:00:12]} 59. Kxf6 {[%emt 0:00:00]} Rg8 {[%emt 0:00:21]} 60. hxg8=N# {[%emt 0:00:00]} 1-0